[Event "Netanya Open 2019"]
[Site "Netanya"]
[Date "2019.06.23"]
[Round "1.7"]
[White "Zubov, Alexander"]
[Black "Levin, Guy"]
[Result "1-0"]
[ECO "B50"]
[WhiteElo "2597"]
[BlackElo "2054"]
[Annotator "RC"]
[PlyCount "75"]
[EventDate "2019.06.23"]
[EventType "swiss"]
[EventCountry "ISR"]
[SourceTitle "playchess.com"]
[Source "ChessBase"]
[SourceQuality "1"]
[TimeControl "40/5400+30:1800+30"]

1. e4 {[%emt 0:00:00]} c5 {[%emt 0:00:00]} 2. Nf3 {[%emt 0:00:02]} d6 {[%emt 0:00:00]} 3. Bc4 {[%emt 0:01:16]} Nf6 {[%emt 0:00:20]} 4. d3 {[%emt 0:00:14]} Nc6 {[%emt 0:01:05]} 5. c3 {[%emt 0:00:36]} g6 {[%emt 0:03:27]} 6. O-O {[%emt 0:01:39]} Bg7 {[%emt 0:00:51]} 7. Re1 {[%emt 0:01:06]} O-O {[%emt 0:05:33]} 8. Nbd2 {[%emt 0:01:25]} e5 {[%emt 0:05:44]} 9. Nf1 {[%emt 0:02:53]} Be6 {[%emt 0:01:58]} 10. Ng3 {[%emt 0:04:23]} Na5 {[%emt 0:12:10]} 11. Bxe6 {[%emt 0:05:59]} fxe6 {[%emt 0:02:36]} 12. Be3 {[%emt 0:01:07]} Qd7 {[%emt 0:04:28]} 13. h3 {[%emt 0:01:27]} b5 {[%emt 0:15:38]} 14. a4 {[%emt 0:08:14]} Rab8 {[%emt 0:06:25]} 15. axb5 {[%emt 0:02:32]} Qxb5 {[%emt 0:00:52]} 16. b4 {[%emt 0:14:34]} Nb7 {[%emt 0:03:38]} 17. Qa4 {[%emt 0:12:55]} Qxd3 {[%emt 0:05:58]} 18. b5 {[%emt 0:03:00]} c4 {[%emt 0:11:23]} 19. Bxa7 {[%emt 0:02:28]} Ra8 {[%emt 0:01:18]} 20. Re3 {[%emt 0:00:54]} Nc5 {[%emt 0:00:54]} 21. Qa2 {[%emt 0:00:38]} Rxa7 {[%emt 0:01:25]} 22. Qxa7 {[%emt 0:00:07]} Qc2 {[%emt 0:00:17]} 23. Qa2 {[%emt 0:09:17]} Qxa2 {[%emt 0:00:31]} 24. Rxa2 {[%emt 0:00:02]} Rb8 {[%emt 0:00:23]} 25. Nd2 {[%emt 0:03:14]} Bh6 {[%emt 0:01:42]} 26. Re1 {[%emt 0:01:47]} Nd3 {[%emt 0:03:22]} 27. Rb1 {[%emt 0:00:42]} d5 {[%emt 0:00:25]} 28. Ndf1 {[%emt 0:12:04]} Nc5 {[%emt 0:01:34]} 29. exd5 {[%emt 0:00:47]} exd5 {[%emt 0:01:23]} 30. Ne3 {[%emt 0:00:30]} Nb3 {[%emt 0:03:21]} 31. Ra6 {[%emt 0:01:26]} Bg5 {[%emt 0:01:49]} 32. Rxf6 {[%emt 0:03:00]} Bxf6 {[%emt 0:00:14]} 33. Nxd5 {[%emt 0:00:02]} Bd8 {[%emt 0:02:37]} 34. Ne3 {[%emt 0:00:25]} Rxb5 {[%emt 0:00:32]} 35. Nxc4 {[%emt 0:00:33]} Nd4 {[%emt 0:02:06]} 36. Rd1 {[%emt 0:00:45]} Nc6 {[%emt 0:00:01]} 37. Rd6 {[%emt 0:00:53]} Rc5 {[%emt 0:00:01]} 38. Nxe5 {[%emt 0:00:13]} 1-0

[Event "Netanya Open 2019"]
[Site "Netanya"]
[Date "2019.06.23"]
[Round "1.8"]
[White "Ben Ari, Yannay"]
[Black "Huzman, Alexander"]
[Result "0-1"]
[ECO "B25"]
[WhiteElo "2053"]
[BlackElo "2588"]
[Annotator "ChessBase"]
[PlyCount "66"]
[EventDate "2019.06.23"]
[EventType "swiss"]
[EventCountry "ISR"]
[SourceTitle "playchess.com"]
[Source "ChessBase"]
[SourceQuality "1"]
[TimeControl "40/5400+30:1800+30"]

1. e4 {[%emt 0:00:00]} c5 {[%emt 0:00:03]} 2. Nc3 {[%emt 0:00:00]} Nc6 {[%emt 0:00:28]} 3. g3 {[%emt 0:00:00]} g6 {[%emt 0:00:36]} 4. Bg2 {[%emt 0:00:00]} Bg7 {[%emt 0:00:14]} 5. Nge2 {[%emt 0:00:20]} e6 {[%emt 0:02:15]} 6. O-O {[%emt 0:00:26]} Nge7 {[%emt 0:00:54]} 7. d3 {[%emt 0:00:41]} d6 {[%emt 0:03:35]} 8. a3 {[%emt 0:02:29]} b6 {[%emt 0:03:13]} 9. Be3 {[%emt 0:03:10]} O-O {[%emt 0:04:44]} 10. Rb1 {[%emt 0:20:55]} Bb7 {[%emt 0:11:02]} 11. Qd2 {[%emt 0:02:40]} Nd4 {[%emt 0:02:26]} 12. b4 {[%emt 0:02:22]} Qd7 {[%emt 0:01:36]} 13. Nd1 {[%emt 0:18:19]} e5 {[%emt 0:10:14]} 14. c4 {[%emt 0:07:24]} f5 {[%emt 0:09:57]} 15. Ndc3 {[%emt 0:05:47]} Rac8 {[%emt 0:07:04]} 16. f3 {[%emt 0:05:38]} Kh8 {[%emt 0:02:42]} 17. b5 {[%emt 0:07:58]} Rf7 {[%emt 0:03:18]} 18. a4 {[%emt 0:02:17]} Rcf8 {[%emt 0:04:09]} 19. Bxd4 {[%emt 0:00:27]} cxd4 {[%emt 0:01:04]} 20. Nd5 {[%emt 0:00:10]} f4 {[%emt 0:00:08]} 21. Nxe7 {[%emt 0:05:54]} Qxe7 {[%emt 0:03:08]} 22. g4 {[%emt 0:00:20]} Bc8 {[%emt 0:00:12]} 23. Rf2 {[%emt 0:05:11]} Bf6 {[%emt 0:01:58]} 24. Bf1 {[%emt 0:00:24]} Bh4 {[%emt 0:01:23]} 25. Rg2 {[%emt 0:00:05]} h5 {[%emt 0:00:10]} 26. h3 {[%emt 0:02:06]} Rh7 {[%emt 0:02:35]} 27. Rb2 {[%emt 0:02:26]} Kg7 {[%emt 0:03:52]} 28. a5 {[%emt 0:05:21]} hxg4 {[%emt 0:04:58]} 29. hxg4 {[%emt 0:00:03]} Rfh8 {[%emt 0:00:02]} 30. axb6 {[%emt 0:00:28]} axb6 {[%emt 0:01:38]} 31. Ra2 {[%emt 0:00:10]} g5 {[%emt 0:04:52]} 32. Ra8 {[%emt 0:00:53]} Kg6 {[%emt 0:00:25]} 33. Qa2 {[%emt 0:00:25]} Be1 {[%emt 0:00:22]} 0-1

[Event "Netanya Open 2019"]
[Site "Netanya"]
[Date "2019.06.23"]
[Round "1.11"]
[White "Sivuk, Vitaly"]
[Black "Cohen Revivo, Alon"]
[Result "1-0"]
[ECO "E10"]
[WhiteElo "2547"]
[BlackElo "2036"]
[Annotator "RC"]
[PlyCount "69"]
[EventDate "2019.06.23"]
[EventType "swiss"]
[EventCountry "ISR"]
[SourceTitle "playchess.com"]
[Source "ChessBase"]
[SourceQuality "1"]
[TimeControl "40/5400+30:1800+30"]

1. d4 {[%emt 0:00:00]} d5 {[%emt 0:00:00]} 2. c4 {[%emt 0:00:00]} Nc6 {[%emt 0:00:02]} 3. Nc3 {[%emt 0:00:42]} dxc4 {[%emt 0:00:45]} 4. Nf3 {[%emt 0:00:15]} Nf6 {[%emt 0:01:03]} 5. e4 {[%emt 0:11:53]} e6 {[%emt 0:02:25]} 6. Bxc4 {[%emt 0:02:58]} Be7 {[%emt 0:01:28]} 7. O-O {[%emt 0:00:25]} O-O {[%emt 0:00:12]} 8. a3 {[%emt 0:02:58]} a6 {[%emt 0:08:40]} 9. Ba2 {[%emt 0:00:35]} b6 {[%emt 0:02:03]} 10. Re1 {[%emt 0:01:22]} Bb7 {[%emt 0:00:54]} 11. h3 {[%emt 0:00:51]} Rc8 {[%emt 0:02:22]} 12. Bg5 {[%emt 0:03:49]} Nd7 {[%emt 0:18:18]} 13. Bf4 {[%emt 0:02:41]} Bf6 {[%emt 0:34:58]} 14. e5 {[%emt 0:03:50]} Be7 {[%emt 0:00:09]} 15. b4 {[%emt 0:01:40]} Na7 {[%emt 0:09:09]} 16. d5 {[%emt 0:01:07]} exd5 {[%emt 0:01:54]} 17. Nxd5 {[%emt 0:00:08]} Kh8 {[%emt 0:11:14]} 18. Qd3 {[%emt 0:02:54]} Bxd5 {[%emt 0:01:59]} 19. Bxd5 {[%emt 0:00:44]} Nb8 {[%emt 0:00:00]} 20. Qb3 {[%emt 0:01:24]} c5 {[%emt 0:01:28]} 21. bxc5 {[%emt 0:03:29]} Bxc5 {[%emt 0:00:28]} 22. Ng5 {[%emt 0:02:16]} Nbc6 {[%emt 0:00:14]} 23. Rad1 {[%emt 0:00:58]} Qe7 {[%emt 0:00:51]} 24. Qd3 {[%emt 0:05:47]} g6 {[%emt 0:00:01]} 25. e6 {[%emt 0:00:10]} f6 {[%emt 0:00:52]} 26. Nf7+ {[%emt 0:00:13]} Kg8 {[%emt 0:00:16]} 27. Qxa6 {[%emt 0:00:19]} Bxa3 {[%emt 0:00:54]} 28. Nd6 {[%emt 0:01:31]} Nb4 {[%emt 0:00:49]} 29. Qxa3 {[%emt 0:01:45]} Nc2 {[%emt 0:00:09]} 30. Qg3 {[%emt 0:01:09]} Rcd8 {[%emt 0:00:46]} 31. Re4 {[%emt 0:01:28]} g5 {[%emt 0:00:27]} 32. Nf5 {[%emt 0:00:42]} Qc5 {[%emt 0:00:39]} 33. e7+ {[%emt 0:00:16]} Rxd5 {[%emt 0:00:03]} 34. exf8=Q+ {[%emt 0:00:18]} Kxf8 {[%emt 0:00:06]} 35. Bd6+ {[%emt 0:00:11]} 1-0

[Event "Netanya Open 2019"]
[Site "Netanya"]
[Date "2019.06.23"]
[Round "1.15"]
[White "Baron, Tal"]
[Black "Kharlamov, Igor"]
[Result "1-0"]
[ECO "E20"]
[WhiteElo "2524"]
[BlackElo "2019"]
[Annotator "ChessBase"]
[PlyCount "71"]
[EventDate "2019.06.23"]
[EventType "swiss"]
[EventCountry "ISR"]
[SourceTitle "playchess.com"]
[Source "ChessBase"]
[SourceQuality "1"]
[TimeControl "40/5400+30:1800+30"]

1. d4 {[%emt 0:00:00]} Nf6 {[%emt 0:00:35]} 2. c4 {[%emt 0:00:00]} e6 {[%emt 0:00:30]} 3. Nc3 {[%emt 0:00:00]} Bb4 {[%emt 0:00:27]} 4. f3 {[%emt 0:00:00]} d5 {[%emt 0:02:19]} 5. a3 {[%emt 0:00:00]} Be7 {[%emt 0:02:17]} 6. e4 {[%emt 0:00:00]} O-O {[%emt 0:05:48]} 7. e5 {[%emt 0:01:21]} Nfd7 {[%emt 0:05:02]} 8. cxd5 {[%emt 0:00:21]} exd5 {[%emt 0:00:08]} 9. Nxd5 {[%emt 0:02:44]} c5 {[%emt 0:04:31]} 10. f4 {[%emt 0:02:39]} cxd4 {[%emt 0:01:33]} 11. Nxe7+ {[%emt 0:00:48]} Qxe7 {[%emt 0:00:07]} 12. Nf3 {[%emt 0:00:15]} Nc5 {[%emt 0:09:28]} 13. b4 {[%emt 0:03:07]} Ne4 {[%emt 0:06:35]} 14. Qxd4 {[%emt 0:08:46]} f5 {[%emt 0:02:35]} 15. Bd3 {[%emt 0:14:15]} Nc6 {[%emt 0:10:19]} 16. Qe3 {[%emt 0:00:58]} Be6 {[%emt 0:09:58]} 17. O-O {[%emt 0:02:43]} Rad8 {[%emt 0:08:49]} 18. Bb2 {[%emt 0:03:27]} a5 {[%emt 0:08:56]} 19. b5 {[%emt 0:06:30]} Qc5 {[%emt 0:01:07]} 20. Qxc5 {[%emt 0:00:23]} Nxc5 {[%emt 0:00:07]} 21. Bc2 {[%emt 0:02:58]} Ne7 {[%emt 0:01:01]} 22. Nd4 {[%emt 0:04:27]} Bc4 {[%emt 0:02:47]} 23. Rfc1 {[%emt 0:03:30]} Bd3 {[%emt 0:03:39]} 24. a4 {[%emt 0:08:07]} Nd5 {[%emt 0:05:05]} 25. Bb1 {[%emt 0:01:52]} b6 {[%emt 0:01:36]} 26. Ba2 {[%emt 0:04:36]} Kh8 {[%emt 0:02:52]} 27. Nc6 {[%emt 0:00:03]} Nxf4 {[%emt 0:01:53]} 28. Nxd8 {[%emt 0:00:03]} Rxd8 {[%emt 0:01:31]} 29. Re1 {[%emt 0:06:10]} Be4 {[%emt 0:00:42]} 30. Rad1 {[%emt 0:00:59]} Nfd3 {[%emt 0:00:54]} 31. Re3 {[%emt 0:03:44]} Nxa4 {[%emt 0:01:10]} 32. Ba1 {[%emt 0:00:28]} Nac5 {[%emt 0:00:05]} 33. Bf7 {[%emt 0:01:24]} f4 {[%emt 0:01:27]} 34. Rxe4 {[%emt 0:01:44]} Nxe4 {[%emt 0:00:09]} 35. e6 {[%emt 0:00:02]} Rc8 {[%emt 0:00:53]} 36. e7 {[%emt 0:00:26]} 1-0

[Event "Netanya Open 2019"]
[Site "Netanya"]
[Date "2019.06.23"]
[Round "1.18"]
[White "Iliaguev, Daniel"]
[Black "Dvoirys, Semen I."]
[Result "0-1"]
[ECO "A45"]
[WhiteElo "1993"]
[BlackElo "2502"]
[Annotator "RC"]
[PlyCount "100"]
[EventDate "2019.06.23"]
[EventType "swiss"]
[EventCountry "ISR"]
[SourceTitle "playchess.com"]
[Source "ChessBase"]
[SourceQuality "1"]
[TimeControl "40/5400+30:1800+30"]

1. d4 {[%emt 0:00:00]} Nf6 {[%emt 0:00:00]} 2. Bg5 {[%emt 0:00:39]} c5 {[%emt 0:00:00]} 3. d5 {[%emt 0:00:54]} Qb6 {[%emt 0:00:00]} 4. Nc3 {[%emt 0:00:07]} Qxb2 {[%emt 0:00:08]} 5. Bd2 {[%emt 0:00:08]} Qb6 {[%emt 0:00:07]} 6. e4 {[%emt 0:00:43]} e5 {[%emt 0:00:10]} 7. f4 {[%emt 0:06:52]} d6 {[%emt 0:00:13]} 8. fxe5 {[%emt 0:00:08]} dxe5 {[%emt 0:00:06]} 9. Nf3 {[%emt 0:04:09]} Bd6 {[%emt 0:00:27]} 10. Rb1 {[%emt 0:11:02]} Qc7 {[%emt 0:17:40]} 11. Bc4 {[%emt 0:18:53]} a6 {[%emt 0:00:26]} 12. a4 {[%emt 0:00:06]} O-O {[%emt 0:02:45]} 13. O-O {[%emt 0:00:47]} Ne8 {[%emt 0:10:51]} 14. Qe2 {[%emt 0:06:39]} Be7 {[%emt 0:02:19]} 15. d6 {[%emt 0:02:56]} Qxd6 {[%emt 0:00:17]} 16. Nd5 {[%emt 0:07:19]} Nd7 {[%emt 0:13:59]} 17. Ba5 {[%emt 0:01:10]} b5 {[%emt 0:02:35]} 18. Ba2 {[%emt 0:04:01]} Bb7 {[%emt 0:08:39]} 19. Rbd1 {[%emt 0:06:56]} c4 {[%emt 0:03:12]} 20. Bb4 {[%emt 0:13:12]} Nc5 {[%emt 0:00:13]} 21. Nh4 {[%emt 0:00:24]} Bxh4 {[%emt 0:04:33]} 22. Nf6+ {[%emt 0:00:28]} Qxf6 {[%emt 0:05:20]} 23. Rxf6 {[%emt 0:00:22]} Nxf6 {[%emt 0:00:07]} 24. Bxc5 {[%emt 0:00:09]} Rfe8 {[%emt 0:03:36]} 25. Bb6 {[%emt 0:05:56]} Nxe4 {[%emt 0:03:11]} 26. Rd7 {[%emt 0:00:45]} Bc6 {[%emt 0:00:18]} 27. Rc7 {[%emt 0:02:08]} Bd5 {[%emt 0:00:10]} 28. Qd1 {[%emt 0:06:04]} Be6 {[%emt 0:01:55]} 29. Rc6 {[%emt 0:00:37]} Nc3 {[%emt 0:01:41]} 30. Qa1 {[%emt 0:00:13]} Nxa4 {[%emt 0:02:33]} 31. Be3 {[%emt 0:00:27]} Bf6 {[%emt 0:00:22]} 32. Rxe6 {[%emt 0:01:08]} Rxe6 {[%emt 0:00:18]} 33. Bxc4 {[%emt 0:00:02]} bxc4 {[%emt 0:02:22]} 34. Qxa4 {[%emt 0:00:02]} Rc8 {[%emt 0:00:11]} 35. g4 {[%emt 0:00:17]} h6 {[%emt 0:00:24]} 36. Kf2 {[%emt 0:00:24]} Bg5 {[%emt 0:01:02]} 37. Qd7 {[%emt 0:01:32]} Rd8 {[%emt 0:01:01]} 38. Qc7 {[%emt 0:00:09]} Bxe3+ {[%emt 0:00:23]} 39. Kxe3 {[%emt 0:00:02]} Rd4 {[%emt 0:00:16]} 40. h3 {[%emt 0:00:47]} g6 {[%emt 0:00:34]} 41. Qc8+ {[%emt 0:31:14]} Kg7 {[%emt 0:30:19]} 42. Qc7 {[%emt 0:00:07]} Rd1 {[%emt 0:05:52]} 43. Qxc4 {[%emt 0:00:00]} Rh1 {[%emt 0:00:00]} 44. Kf3 {[%emt 0:00:00]} Rxh3+ {[%emt 0:00:00]} 45. Kg2 {[%emt 0:00:00]} Rh4 {[%emt 0:00:00]} 46. Kg3 {[%emt 0:00:00]} Rh1 {[%emt 0:00:00]} 47. Qd5 {[%emt 0:00:00]} Rg1+ {[%emt 0:00:00]} 48. Kh3 {[%emt 0:00:00]} Ra1 {[%emt 0:00:00]} 49. c4 {[%emt 0:00:00]} a5 {[%emt 0:00:00]} 50. c5 {[%emt 0:00:00]} Rc1 {[%emt 0:00:00]} 0-1

[Event "Netanya Open 2019"]
[Site "Netanya"]
[Date "2019.06.23"]
[Round "1.19"]
[White "Zoler, Dan"]
[Black "Uritsky, Yonathan"]
[Result "1-0"]
[ECO "A58"]
[WhiteElo "2499"]
[BlackElo "1984"]
[Annotator "RC"]
[PlyCount "91"]
[EventDate "2019.06.23"]
[EventType "swiss"]
[EventCountry "ISR"]
[SourceTitle "playchess.com"]
[Source "ChessBase"]
[SourceQuality "1"]
[TimeControl "40/5400+30:1800+30"]

1. d4 {[%emt 0:00:00]} Nf6 {[%emt 0:00:00]} 2. c4 {[%emt 0:00:00]} g6 {[%emt 0:00:17]} 3. Nf3 {[%emt 0:00:00]} Bg7 {[%emt 0:00:24]} 4. g3 {[%emt 0:00:00]} c5 {[%emt 0:00:20]} 5. d5 {[%emt 0:00:15]} b5 {[%emt 0:01:20]} 6. cxb5 {[%emt 0:00:43]} a6 {[%emt 0:00:59]} 7. bxa6 {[%emt 0:00:08]} Bxa6 {[%emt 0:00:10]} 8. Bg2 {[%emt 0:00:18]} d6 {[%emt 0:01:25]} 9. O-O {[%emt 0:00:07]} O-O {[%emt 0:00:59]} 10. Nc3 {[%emt 0:00:05]} Nbd7 {[%emt 0:01:29]} 11. Re1 {[%emt 0:01:41]} Rb8 {[%emt 0:02:23]} 12. Rb1 {[%emt 0:05:35]} Ng4 {[%emt 0:05:25]} 13. Bd2 {[%emt 0:06:46]} Nge5 {[%emt 0:02:38]} 14. Nxe5 {[%emt 0:01:17]} Nxe5 {[%emt 0:00:17]} 15. b3 {[%emt 0:00:33]} Qc7 {[%emt 0:05:47]} 16. Qc2 {[%emt 0:09:52]} Rfc8 {[%emt 0:02:41]} 17. Rec1 {[%emt 0:09:26]} Qa7 {[%emt 0:04:16]} 18. h3 {[%emt 0:02:00]} Rb7 {[%emt 0:01:47]} 19. Qd1 {[%emt 0:16:22]} Qb8 {[%emt 0:04:22]} 20. a3 {[%emt 0:08:23]} Nd7 {[%emt 0:17:10]} 21. Ne4 {[%emt 0:03:11]} h6 {[%emt 0:06:42]} 22. Bc3 {[%emt 0:01:30]} Nb6 {[%emt 0:40:09]} 23. Bxg7 {[%emt 0:01:40]} Kxg7 {[%emt 0:00:00]} 24. e3 {[%emt 0:00:37]} Rcc7 {[%emt 0:00:00]} 25. Qd2 {[%emt 0:05:20]} Kh7 {[%emt 0:00:00]} 26. Kh2 {[%emt 0:12:25]} Nc4 {[%emt 0:00:00]} 27. Qa2 {[%emt 0:03:35]} Ne5 {[%emt 0:00:00]} 28. Rc3 {[%emt 0:02:10]} Rb6 {[%emt 0:00:00]} 29. f4 {[%emt 0:01:25]} Nd7 {[%emt 0:00:00]} 30. Nd2 {[%emt 0:01:20]} Ra7 {[%emt 0:00:00]} 31. Qc2 {[%emt 0:00:40]} Rbb7 {[%emt 0:00:00]} 32. e4 {[%emt 0:01:01]} Rb6 {[%emt 0:00:00]} 33. Re1 {[%emt 0:00:29]} e6 {[%emt 0:00:00]} 34. dxe6 {[%emt 0:03:53]} fxe6 {[%emt 0:00:00]} 35. h4 {[%emt 0:00:11]} Nf6 {[%emt 0:00:00]} 36. Bh3 {[%emt 0:00:38]} Qg8 {[%emt 0:00:00]} 37. e5 {[%emt 0:00:43]} Nd5 {[%emt 0:00:00]} 38. Rf3 {[%emt 0:00:26]} Bb7 {[%emt 0:00:00]} 39. Nc4 {[%emt 0:00:30]} Rba6 {[%emt 0:00:00]} 40. Rf2 {[%emt 0:00:32]} dxe5 {[%emt 0:00:00]} 41. Rxe5 {[%emt 0:30:45]} Bc8 {[%emt 0:23:33]} 42. h5 {[%emt 0:01:57]} Rg7 {[%emt 0:00:59]} 43. hxg6+ {[%emt 0:00:00]} Rxg6 {[%emt 0:00:00]} 44. Rh5 {[%emt 0:00:00]} Kh8 {[%emt 0:00:00]} 45. Ne5 {[%emt 0:00:00]} Rf6 {[%emt 0:00:00]} 46. Qxc5 {[%emt 0:00:00]} 1-0

[Event "Netanya Open 2019"]
[Site "Netanya"]
[Date "2019.06.23"]
[Round "1.24"]
[White "Friedland, Eldar"]
[Black "Gorodetzky, David"]
[Result "1/2-1/2"]
[ECO "E46"]
[WhiteElo "1959"]
[BlackElo "2461"]
[Annotator "RC"]
[PlyCount "55"]
[EventDate "2019.06.23"]
[EventType "swiss"]
[EventCountry "ISR"]
[SourceTitle "playchess.com"]
[Source "ChessBase"]
[SourceQuality "1"]
[TimeControl "40/5400+30:1800+30"]

1. d4 {[%emt 0:00:00]} Nf6 {[%emt 0:00:00]} 2. c4 {[%emt 0:00:00]} e6 {[%emt 0:00:00]} 3. Nc3 {[%emt 0:00:00]} Bb4 {[%emt 0:00:00]} 4. e3 {[%emt 0:00:44]} O-O {[%emt 0:02:34]} 5. Nge2 {[%emt 0:00:22]} c6 {[%emt 0:07:40]} 6. a3 {[%emt 0:01:26]} Ba5 {[%emt 0:00:33]} 7. c5 {[%emt 0:00:28]} d6 {[%emt 0:05:06]} 8. cxd6 {[%emt 0:06:31]} Qxd6 {[%emt 0:00:57]} 9. b4 {[%emt 0:00:29]} Bc7 {[%emt 0:03:56]} 10. g3 {[%emt 0:00:50]} e5 {[%emt 0:08:56]} 11. Bg2 {[%emt 0:07:04]} Rd8 {[%emt 0:14:02]} 12. Bb2 {[%emt 0:17:30]} Qe7 {[%emt 0:10:06]} 13. O-O {[%emt 0:07:51]} e4 {[%emt 0:06:36]} 14. Qc2 {[%emt 0:04:26]} Bf5 {[%emt 0:00:11]} 15. b5 {[%emt 0:09:13]} cxb5 {[%emt 0:01:42]} 16. Nxb5 {[%emt 0:02:22]} Ba5 {[%emt 0:09:25]} 17. Qc5 {[%emt 0:18:16]} Nc6 {[%emt 0:06:04]} 18. Bc3 {[%emt 0:08:36]} Qd7 {[%emt 0:04:55]} 19. Bxa5 {[%emt 0:06:20]} Nxa5 {[%emt 0:00:13]} 20. Qb4 {[%emt 0:02:40]} b6 {[%emt 0:00:56]} 21. Rac1 {[%emt 0:00:22]} Nd5 {[%emt 0:07:18]} 22. Qb1 {[%emt 0:00:26]} Qe7 {[%emt 0:01:53]} 23. Nec3 {[%emt 0:01:19]} Nf6 {[%emt 0:01:25]} 24. d5 {[%emt 0:00:46]} Bg6 {[%emt 0:02:38]} 25. Rfd1 {[%emt 0:01:17]} Qe5 {[%emt 0:01:50]} 26. d6 {[%emt 0:00:46]} Nb7 {[%emt 0:01:19]} 27. Nc7 {[%emt 0:00:23]} Rac8 {[%emt 0:00:33]} 28. N3b5 {[%emt 0:03:33]} 1/2-1/2

[Event "Netanya Open 2019"]
[Site "Netanya"]
[Date "2019.06.23"]
[Round "1.25"]
[White "Mindlin, Alon"]
[Black "Ehrlich, Roy"]
[Result "1-0"]
[ECO "E48"]
[WhiteElo "2454"]
[BlackElo "1938"]
[Annotator "ChessBase"]
[PlyCount "65"]
[EventDate "2019.06.23"]
[EventType "swiss"]
[EventCountry "ISR"]
[SourceTitle "playchess.com"]
[Source "ChessBase"]
[SourceQuality "1"]
[TimeControl "40/5400+30:1800+30"]

1. c4 {[%emt 0:00:00]} e6 {[%emt 0:00:00]} 2. d4 {[%emt 0:00:00]} Bb4+ {[%emt 0:00:00]} 3. Nc3 {[%emt 0:00:02]} c5 {[%emt 0:00:00]} 4. e3 {[%emt 0:00:06]} d5 {[%emt 0:03:15]} 5. Bd3 {[%emt 0:01:27]} Nf6 {[%emt 0:07:13]} 6. Nge2 {[%emt 0:00:35]} O-O {[%emt 0:01:38]} 7. O-O {[%emt 0:01:03]} b6 {[%emt 0:05:50]} 8. cxd5 {[%emt 0:06:31]} exd5 {[%emt 0:02:33]} 9. dxc5 {[%emt 0:00:17]} Bxc5 {[%emt 0:07:52]} 10. e4 {[%emt 0:19:54]} dxe4 {[%emt 0:15:30]} 11. Nxe4 {[%emt 0:00:10]} Nbd7 {[%emt 0:02:43]} 12. Bg5 {[%emt 0:06:25]} Be7 {[%emt 0:06:10]} 13. Qa4 {[%emt 0:09:56]} Bb7 {[%emt 0:08:15]} 14. Rfd1 {[%emt 0:06:19]} Bxe4 {[%emt 0:08:06]} 15. Bxe4 {[%emt 0:04:30]} Nxe4 {[%emt 0:00:13]} 16. Rxd7 {[%emt 0:01:01]} Nxg5 {[%emt 0:00:06]} 17. Rxd8 {[%emt 0:00:04]} Rfxd8 {[%emt 0:00:06]} 18. Re1 {[%emt 0:11:18]} Bc5 {[%emt 0:06:41]} 19. Ng3 {[%emt 0:10:04]} Ne6 {[%emt 0:05:49]} 20. Ne4 {[%emt 0:05:31]} Bd4 {[%emt 0:00:58]} 21. b3 {[%emt 0:01:30]} h6 {[%emt 0:00:18]} 22. h4 {[%emt 0:00:07]} a5 {[%emt 0:01:28]} 23. Ng3 {[%emt 0:02:42]} Rac8 {[%emt 0:03:52]} 24. Nf5 {[%emt 0:00:17]} Bf6 {[%emt 0:03:50]} 25. Qg4 {[%emt 0:00:15]} Kf8 {[%emt 0:01:16]} 26. Rd1 {[%emt 0:03:17]} Rxd1+ {[%emt 0:02:32]} 27. Qxd1 {[%emt 0:00:01]} Be5 {[%emt 0:01:38]} 28. g3 {[%emt 0:00:47]} Rc5 {[%emt 0:01:17]} 29. Qd7 {[%emt 0:00:39]} Rc7 {[%emt 0:00:43]} 30. Qb5 {[%emt 0:00:29]} Rc1+ {[%emt 0:00:40]} 31. Kg2 {[%emt 0:00:05]} Bc7 {[%emt 0:01:20]} 32. Qd7 {[%emt 0:00:08]} Bd8 {[%emt 0:00:45]} 33. Nd6 {[%emt 0:00:08]} 1-0

[Event "Netanya Open 2019"]
[Site "Netanya"]
[Date "2019.06.23"]
[Round "1.27"]
[White "Shubin, Kirill"]
[Black "Vagman, Roy"]
[Result "1/2-1/2"]
[ECO "C88"]
[WhiteElo "2426"]
[BlackElo "1904"]
[Annotator "NA RC"]
[PlyCount "89"]
[EventDate "2019.06.23"]
[EventType "swiss"]
[EventCountry "ISR"]
[SourceTitle "playchess.com"]
[Source "ChessBase"]
[SourceQuality "1"]
[TimeControl "40/5400+30:1800+30"]

1. e4 {[%emt 0:00:00]} e5 {[%emt 0:00:00]} 2. Nf3 {[%emt 0:00:00]} Nc6 {[%emt 0:00:18]} 3. Bb5 {[%emt 0:00:00]} a6 {[%emt 0:00:21]} 4. Ba4 {[%emt 0:00:02]} Nf6 {[%emt 0:00:24]} 5. O-O {[%emt 0:00:06]} Be7 {[%emt 0:00:24]} 6. Re1 {[%emt 0:00:06]} b5 {[%emt 0:00:32]} 7. Bb3 {[%emt 0:00:06]} O-O {[%emt 0:00:29]} 8. h3 {[%emt 0:00:06]} Bb7 {[%emt 0:00:52]} 9. Nc3 {[%emt 0:01:25]} d6 {[%emt 0:01:13]} 10. a3 {[%emt 0:01:06]} Na5 {[%emt 0:02:00]} 11. Ba2 {[%emt 0:00:08]} c5 {[%emt 0:00:45]} 12. b4 {[%emt 0:03:19]} Nc6 {[%emt 0:04:01]} 13. Nd5 {[%emt 0:00:07]} cxb4 {[%emt 0:01:52]} 14. axb4 {[%emt 0:00:23]} Nxd5 {[%emt 0:00:20]} 15. Bxd5 {[%emt 0:00:05]} Qc7 {[%emt 0:01:11]} 16. c3 {[%emt 0:02:06]} Nb8 {[%emt 0:01:15]} 17. Bb3 {[%emt 0:05:20]} Nd7 {[%emt 0:00:19]} 18. Bb2 {[%emt 0:01:47]} Nb6 {[%emt 0:02:41]} 19. d3 {[%emt 0:07:45]} Kh8 {[%emt 0:00:56]} 20. c4 {[%emt 0:05:42]} f5 {[%emt 0:03:59]} 21. c5 {[%emt 0:02:45]} Nd7 {[%emt 0:02:11]} 22. Be6 {[%emt 0:00:32]} dxc5 {[%emt 0:01:18]} 23. Bxf5 {[%emt 0:00:27]} cxb4 {[%emt 0:02:07]} 24. Rc1 {[%emt 0:01:35]} Qd6 {[%emt 0:00:21]} 25. Bxd7 {[%emt 0:03:01]} Qxd7 {[%emt 0:00:07]} 26. Nxe5 {[%emt 0:00:47]} Qe6 {[%emt 0:00:34]} 27. Qg4 {[%emt 0:09:25]} Qxg4 {[%emt 0:00:47]} 28. Nxg4 {[%emt 0:00:15]} Rac8 {[%emt 0:00:23]} 29. Ne3 {[%emt 0:00:49]} Rxc1 {[%emt 0:10:50]} 30. Rxc1 {[%emt 0:00:04]} Rc8 {[%emt 0:00:10]} 31. Ra1 {[%emt 0:01:23]} Rd8 {[%emt 0:03:01]} 32. e5 {[%emt 0:09:12]} Bc5 {[%emt 0:07:45]} 33. Nf5 {[%emt 0:04:33]} Rxd3 {[%emt 0:10:25]} 34. Rc1 {[%emt 0:00:06]} Rd5 {[%emt 0:07:53]} 35. g4 {[%emt 0:00:09]} Kg8 {[%emt 0:02:15]} 36. e6 {[%emt 0:00:37]} g6 {[%emt 0:03:24]} 37. e7 {[%emt 0:03:01]} Kf7 {[%emt 0:00:34]} 38. Re1 {[%emt 0:00:14]} Bc6 {[%emt 0:00:14]} 39. Nh6+ {[%emt 0:02:10]} Ke8 {[%emt 0:00:16]} 40. Ng8 {[%emt 0:01:25]} Rd2 {[%emt 0:01:13]} 41. Rc1 {[%emt 0:30:17]} Bxe7 {[%emt 0:36:13]} 42. Rxc6 {[%emt 0:06:29]} Rxb2 {[%emt 0:00:40]} 43. Rxa6 {[%emt 0:00:10]} Kf7 {[%emt 0:03:53]} 44. Nxe7 {[%emt 0:00:06]} Kxe7 {[%emt 0:00:08]} 45. Rb6 {[%emt 0:00:04]} 1/2-1/2